bitfinex/quotes_SOLUSD_20260213
["timestamp","ask_amount","ask_price","bid_price","bid_amount"]
[1770967017750,0.35390058,79.259,79.238,0.53743543]
[1770967020468,0.35149674,79.269,79.241,0.53743543]
[1770967021063,4.20041295,79.26,79.241,0.53743543]
[1770967021270,0.34993712,79.269,79.241,0.53743543]
[1770967021861,12.61448997,79.274,79.241,0.53743543]
[1770967022862,53.82,79.279,79.251,0.51336946]
[1770967023270,4.20041295,79.28,79.251,0.51336946]
[1770967023444,12.61368079,79.279,79.251,0.51336946]
[1770967023858,0.34840923,79.278,79.251,0.51336946]
[1770967024069,0.34840923,79.269,79.246,0.51336946]
[1770967024259,0.34766163,79.259,79.239,0.51336946]
[1770967024876,0.34766163,79.257,79.239,0.51336946]
[1770967026374,0.34619646,79.255,79.232,0.51336946]
[1770967027976,0.34547159,79.249,79.232,0.51336946]
[1770967028955,0.34547159,79.249,79.218,31.55846291]
[1770967028956,0.34475886,79.248,79.225,0.51336946]
[1770967029175,12.61858678,79.249,79.22,0.51336946]
[1770967029176,0.34475886,79.239,79.22,0.51336946]
[1770967029674,12.61858678,79.249,79.208,41.74]
[1770967029675,4.20041295,79.23,79.211,0.51336946]
[1770967030066,0.34405486,79.229,79.211,0.51336946]
[1770967030475,0.34405486,79.229,79.208,41.74]
[1770967031276,0.34268019,79.228,79.203,0.51336946]
[1770967031457,0.34268019,79.219,79.193,41.76]
[1770967031656,4.20041295,79.21,79.193,0.51336946]
[1770967032573,0.34200251,79.209,79.183,0.51336946]
[1770967032761,4.20041295,79.2,79.183,0.51336946]
[1770967033369,4.20041295,79.2,79.177,0.51336946]
[1770967033370,0.34133377,79.199,79.177,0.51336946]
[1770967033576,4.20041295,79.19,79.171,0.51336946]
[1770967033761,0.34133377,79.189,79.171,0.51336946]
[1770967034263,0.34133377,79.189,79.17,0.2]
[1770967035179,4.20041295,79.18,79.17,0.2]
[1770967035655,0.14002734,79.179,79.156,41.76]
[1770967036256,53.82,79.193,79.156,41.76]
[1770967036257,0.13954283,79.197,79.161,0.51336946]
[1770967036571,4.20041295,79.18,79.161,0.51336946]
[1770967037774,12.62961138,79.179,79.161,0.51336946]
[1770967038367,0.13857746,79.178,79.154,0.51336946]
[1770967038566,12.62961138,79.179,79.154,0.51336946]
[1770967039661,4.20041295,79.19,79.156,0.51336946]
[1770967039874,4.20041295,79.19,79.162,0.51336946]
[1770967040792,12.62801651,79.189,79.162,0.51336946]
[1770967041584,0.13717615,79.179,79.15,0.71336946]
[1770967041784,12.62961138,79.179,79.151,0.51336946]
[1770967041963,0.13717615,79.178,79.151,0.51336946]
[1770967042478,12.62961138,79.179,79.15,0.2]
[1770967042479,4.20041295,79.18,79.153,0.51336946]
[1770967042657,12.62530616,79.206,79.161,0.51336946]
[1770967042859,12.62530616,79.206,79.171,0.51336946]
[1770967043262,4.20041295,79.21,79.181,0.51336946]
[1770967043664,12.76025767,79.215,79.181,0.51336946]
[1770967043868,12.62399448,79.215,79.181,0.51336946]
[1770967044081,12.62323432,79.219,79.183,0.51336946]
[1770967044286,4.20041295,79.21,79.183,0.51336946]
[1770967045387,12.62103272,79.233,79.191,0.51336946]
[1770967045781,4.33578108,79.23,79.191,0.51336946]
[1770967045983,0.13536813,79.229,79.191,0.51336946]
[1770967046184,12.75700919,79.229,79.193,0.51336946]
[1770967047190,12.75613125,79.229,79.193,0.51336946]
[1770967047369,4.20041295,79.22,79.193,0.51336946]
[1770967048273,12.62323432,79.219,79.193,0.51336946]
[1770967048695,4.20041295,79.22,79.195,0.51336946]
[1770967048988,12.62177681,79.229,79.195,0.51336946]
[1770967049490,4.20041295,79.22,79.195,0.51336946]
[1770967050188,12.62323432,79.219,79.195,0.51336946]
[1770967050492,4.20041295,79.22,79.195,0.51336946]
[1770967050671,12.62180037,79.228,79.195,0.51336946]
[1770967051592,4.20582321,79.24,79.201,0.48916655]
[1770967052171,4.20582321,79.24,79.211,0.48916655]
[1770967052373,12.6200482,79.239,79.211,0.48916655]
[1770967052891,4.20582321,79.24,79.212,0.48916655]
[1770967054171,4.20582321,79.23,79.212,0.48916655]
[1770967054778,16.95651156,79.24,79.212,0.48916655]
[1770967055093,0.13065647,79.239,79.212,0.48916655]
[1770967055679,4.20582321,79.23,79.212,0.48916655]
[1770967056088,16.82585509,79.24,79.212,0.48916655]
[1770967057483,16.82585509,79.24,79.213,0.49363163]
[1770967057888,0.12944948,79.239,79.213,0.49363163]
[1770967060217,4.20582321,79.25,79.221,0.49363163]
[1770967060586,0.12828333,79.249,79.221,0.49363163]
[1770967061580,12.74673908,79.249,79.221,0.49363163]
[1770967062402,12.61845575,79.249,79.221,0.49363163]
[1770967062995,12.74598722,79.249,79.221,0.49363163]
[1770967063196,4.20582321,79.24,79.221,0.49363163]
[1770967063389,12.74598722,79.249,79.221,0.49363163]
[1770967065102,12.74598722,79.249,79.223,0.49363163]
[1770967065103,12.61845575,79.249,79.223,0.49363163]
[1770967067303,4.20582321,79.24,79.211,0.49363163]
[1770967068388,0.12537623,79.239,79.211,0.49363163]
[1770967069191,4.20582321,79.22,79.198,0.49363163]
[1770967069395,12.74666905,79.229,79.198,0.49363163]
[1770967070503,0.12468825,79.219,79.199,0.49363163]
[1770967071098,4.33051146,79.23,79.201,0.49363163]
[1770967071404,4.20582321,79.23,79.201,0.49363163]
[1770967071615,53.84,79.237,79.201,0.49363163]
[1770967071909,12.6200482,79.239,79.211,0.49363163]
[1770967072402,12.74406539,79.239,79.211,0.49363163]
[1770967072595,0.12401719,79.238,79.211,0.49363163]
[1770967072801,0.12401719,79.229,79.203,0.49363163]
[1770967074905,4.20582321,79.22,79.203,0.49363163]
[1770967077808,4.20582321,79.22,79.197,0.49363163]
[1770967078109,4.20582321,79.21,79.182,0.49363163]
[1770967078291,0.12209903,79.209,79.182,0.49363163]
[1770967078612,4.20582321,79.21,79.182,0.49363163]
[1770967079716,12.62323432,79.219,79.182,0.49363163]
[1770967079893,12.62323432,79.219,79.181,44.20252333]
[1770967079894,12.62323432,79.219,79.191,0.49363163]
[1770967080417,4.20582321,79.21,79.191,0.49363163]
[1770967080816,0.12118876,79.209,79.18,0.48324964]
[1770967080992,4.20582321,79.2,79.18,0.48324964]
[1770967081511,4.20582321,79.21,79.181,0.48324964]
[1770967082617,12.62482798,79.209,79.181,0.48324964]
[1770967082803,4.20582321,79.2,79.181,0.48324964]
[1770967083518,44.18689794,79.209,79.181,0.48324964]
[1770967083519,12.62482798,79.209,79.181,0.48324964]
[1770967084013,0.12030868,79.208,79.181,0.48324964]
[1770967084395,12.62482798,79.209,79.183,12.62897339]
[1770967084610,31.55790398,79.22,79.183,12.62897339]
[1770967084611,12.62353005,79.218,79.184,0.48324964]
[1770967085615,0.11973738,79.209,79.184,0.48324964]
[1770967085914,4.20582321,79.2,79.179,0.48324964]
[1770967086118,0.11973738,79.206,79.179,0.48324964]
[1770967087417,0.11973738,79.206,79.18,12.62945188]
[1770967087721,0.11973738,79.206,79.181,0.48324964]
[1770967088415,4.20582321,79.19,79.163,0.52336922]
[1770967088620,4.20582321,79.2,79.164,0.52336922]
[1770967088810,4.20582321,79.2,79.171,0.52336922]
[1770967089012,12.62482798,79.209,79.171,0.52336922]
[1770967089626,12.62482798,79.209,79.172,12.63072803]
[1770967089800,4.20582321,79.2,79.173,0.52336922]
[1770967090203,4.20582321,79.19,79.173,0.52336922]
[1770967090507,4.20582321,79.18,79.159,0.52336922]
[1770967090720,4.20582321,79.19,79.159,0.52336922]
[1770967091104,4.20582321,79.18,79.159,0.52336922]
[1770967091516,4.20582321,79.18,79.151,0.52336922]
[1770967092023,4.20582321,79.17,79.151,0.52336922]
[1770967093116,4.20582321,79.17,79.135,0.52336922]
[1770967093117,4.20582321,79.16,79.135,0.52336922]
[1770967093421,4.20582321,79.17,79.136,0.52336922]
[1770967093810,4.20582321,79.16,79.136,0.52336922]
[1770967094011,4.20582321,79.16,79.138,0.52336922]
[1770967094222,12.63165611,79.167,79.138,0.52336922]
[1770967094408,4.20582321,79.16,79.138,0.52336922]
[1770967094603,12.63165611,79.167,79.138,0.52336922]
[1770967094948,4.20582321,79.16,79.138,0.52336922]
[1770967096826,4.20582321,79.16,79.14,0.52336922]
[1770967098310,12.63165611,79.167,79.14,0.52336922]
[1770967098520,50.48091258,79.238,79.151,0.52336922]
[1770967098716,4.20582321,79.18,79.151,0.52336922]
[1770967099030,4.20582321,79.18,79.141,12.63567556]
[1770967099031,4.20582321,79.19,79.161,0.52336922]
[1770967099233,4.20582321,79.2,79.171,0.52336922]
[1770967099414,4.20582321,79.19,79.171,0.52336922]
[1770967100818,4.20582321,79.18,79.161,0.52336922]
[1770967102509,4.20582321,79.19,79.161,0.52336922]
[1770967102819,4.20582321,79.18,79.161,0.52336922]
[1770967103629,12.62801651,79.189,79.161,0.52336922]
[1770967105844,4.20582321,79.18,79.161,0.52336922]
[1770967107214,16.83532095,79.18,79.161,0.52336922]
[1770967107523,12.62961138,79.179,79.161,0.52336922]
[1770967107729,4.20582321,79.19,79.161,0.52336922]
[1770967108115,4.20582321,79.18,79.161,0.52336922]
[1770967112240,4.20582321,79.18,79.158,0.52336922]
[1770967112241,12.62961138,79.179,79.158,0.52336922]
[1770967112417,4.20582321,79.17,79.152,0.52336922]
[1770967112928,4.21218688,79.17,79.146,0.52336922]
[1770967113531,4.21218688,79.17,79.134,0.52336922]
[1770967113734,4.21218688,79.15,79.128,0.52336922]
[1770967113919,4.21218688,79.18,79.141,0.52336922]
[1770967114119,4.21218688,79.17,79.141,0.52336922]
[1770967114835,53.7,79.187,79.151,0.52336922]
[1770967115214,4.21218688,79.19,79.151,0.52336922]
[1770967116248,12.62801651,79.189,79.153,0.52336922]
[1770967117310,12.62801651,79.189,79.161,0.52336922]
[1770967121131,12.62801651,79.189,79.162,0.52336922]
[1770967125822,12.62801651,79.189,79.163,12.63216401]
[1770967126023,12.62801651,79.189,79.164,0.52336922]
[1770967127536,12.62801651,79.189,79.152,12.63390871]
[1770967127720,4.21218688,79.18,79.153,0.52336922]
[1770967129535,12.62961138,79.179,79.153,0.52336922]
[1770967132845,4.21218688,79.16,79.122,0.52336922]
[1770967133141,4.21218688,79.15,79.122,0.52336922]
[1770967133530,12.62961138,79.179,79.14,4.21218688]
[1770967133740,4.21218688,79.18,79.143,0.52336922]
[1770967134041,12.6288139,79.184,79.151,0.52336922]
[1770967136043,12.6288139,79.184,79.153,0.52336922]
[1770967138041,4.21218688,79.18,79.153,0.52336922]
[1770967138325,4.21218688,79.18,79.148,13.15782375]
[1770967138524,4.21218688,79.18,79.148,12.63445453]
[1770967138751,4.21218688,79.18,79.149,0.52336922]
[1770967139640,4.21218688,79.17,79.142,12.63539612]
[1770967139844,4.21218688,79.17,79.142,13.15876534]
[1770967140156,4.21218688,79.17,79.144,12.6351966]
[1770967140333,53.84,79.169,79.135,0.52336922]
[1770967140532,66.47120665,79.169,79.135,0.52336922]
[1770967141426,12.63120665,79.169,79.135,0.52336922]
[1770967142351,12.63120665,79.169,79.137,0.52336922]
[1770967144950,53.84,79.172,79.139,0.52336922]
[1770967145150,12.62961138,79.179,79.141,0.52336922]
[1770967145454,53.88,79.177,79.141,0.52336922]
[1770967146731,12.62961138,79.179,79.143,0.52336922]
[1770967148735,58.09218688,79.18,79.145,0.52336922]
[1770967149147,12.62961138,79.179,79.145,0.52336922]
[1770967149836,4.21218688,79.18,79.145,0.52336922]
[1770967150041,78.28553294,79.201,79.161,0.52336922]
[1770967150455,12.62642205,79.199,79.161,0.52336922]
[1770967152257,12.62642205,79.199,79.163,0.52336922]
[1770967152463,4.21218688,79.21,79.171,0.52336922]
[1770967152641,53.92,79.2,79.171,0.52336922]
[1770967152845,58.13218688,79.2,79.171,0.52336922]
[1770967154842,58.13218688,79.2,79.173,0.52336922]
[1770967155245,12.62642205,79.199,79.173,0.52336922]
[1770967155970,4.21218688,79.19,79.161,0.52336922]
[1770967156444,53.96,79.192,79.151,0.52336922]
[1770967156445,4.21218688,79.18,79.151,0.52336922]
[1770967156640,4.61729252,79.196,79.151,0.52336922]
[1770967156846,4.21218688,79.18,79.151,0.52336922]
[1770967157152,4.21218688,79.18,79.153,0.52336922]
[1770967158346,4.21218688,79.17,79.144,0.52336922]
[1770967158555,4.21218688,79.17,79.122,41.98]
[1770967158556,4.21218688,79.16,79.138,0.52336922]
[1770967158957,12.63280233,79.159,79.138,0.52336922]
[1770967159872,12.63280233,79.159,79.131,0.52336922]
[1770967161264,4.21218688,79.15,79.131,0.52336922]
[1770967161471,54.0,79.152,79.131,0.52336922]
[1770967161671,54.0,79.155,79.133,0.52336922]
[1770967162252,4.21218688,79.16,79.133,0.52336922]
[1770967162471,54.0,79.169,79.141,0.52336922]
[1770967163574,44.20196508,79.182,79.151,0.52336922]
[1770967163575,54.0,79.175,79.151,0.52336922]
[1770967163760,12.62913288,79.182,79.151,0.52336922]
[1770967164178,16.84012351,79.19,79.151,0.52336922]
[1770967164377,16.84012351,79.19,79.161,0.52336922]
[1770967165568,16.84012351,79.19,79.162,0.52336922]
[1770967169182,4.21218688,79.2,79.171,0.52336922]
[1770967169368,54.06,79.199,79.171,0.52336922]
[1770967170866,66.68651668,79.199,79.171,13.15423077]
[1770967171061,4.21218688,79.19,79.171,0.52336922]
[1770967171284,4.21218688,79.19,79.162,0.52336922]
[1770967171487,66.68651668,79.199,79.151,12.63397117]
[1770967171488,4.21218688,79.17,79.151,12.63397117]
[1770967172567,4.21218688,79.17,79.143,13.15872547]
[1770967174191,4.21218688,79.17,79.144,0.52336922]
[1770967174574,16.84337824,79.17,79.144,0.52336922]
[1770967174974,16.84340986,79.17,79.144,0.52336922]
[1770967175381,4.2122185,79.16,79.144,0.52336922]
[1770967176296,31.56933575,79.191,79.123,5.36086188]
[1770967176468,4.2122185,79.17,79.131,0.52336922]
[1770967177986,4.2122185,79.16,79.131,0.52336922]
[1770967178979,12.63127973,79.169,79.133,0.52336922]
[1770967180487,4.2122185,79.16,79.135,0.52336922]
[1770967180685,4.2122185,79.15,79.135,0.52336922]
[1770967181591,4.2122185,79.15,79.128,0.52336922]
[1770967181773,4.2122185,79.15,79.122,0.52336922]
[1770967182195,4.2122185,79.14,79.122,0.52336922]
[1770967183589,12.63599489,79.139,79.12,0.2]
[1770967183790,4.2122185,79.13,79.11,0.2]
[1770967184092,4.2122185,79.12,79.11,0.2]
[1770967184291,4.2122185,79.13,79.11,0.2]
[1770967185196,16.84965562,79.13,79.11,0.2]
[1770967187496,4.2122185,79.13,79.11,0.2]
[1770967187901,4.2122185,79.13,79.111,0.52336922]
[1770967188600,12.63759178,79.129,79.11,0.2]
[1770967188904,4.2122185,79.12,79.11,0.2]
[1770967191500,16.85126029,79.12,79.11,0.2]
[1770967191801,16.85126029,79.12,79.092,12.6433838]
[1770967191993,16.85126029,79.12,79.09,0.2]
[1770967191994,4.2122185,79.11,79.09,0.2]
[1770967192194,4.2122185,79.11,79.091,0.52336922]
[1770967193494,54.0,79.137,79.101,0.52336922]
[1770967194106,4.2122185,79.14,79.101,0.52336922]
[1770967195106,4.2122185,79.13,79.102,12.64190538]
[1770967195307,4.2122185,79.13,79.103,0.52336922]
[1770967196209,12.63615456,79.138,79.104,12.64158576]
[1770967196591,12.63615456,79.138,79.105,0.52336922]
[1770967197905,4.2122185,79.13,79.105,0.52336922]
[1770967199111,4.2122185,79.13,79.107,0.52336922]
[1770967199498,12.63668154,79.135,79.107,0.52336922]
[1770967199695,4.2122185,79.14,79.107,0.52336922]
[1770967200102,12.63599489,79.139,79.107,0.52336922]
[1770967200914,66.65545754,79.143,79.109,0.52336922]
[1770967201115,170.9197219,79.418,79.121,0.52336922]
[1770967201116,31.57975378,79.165,79.121,0.52336922]
[1770967201295,4.2122185,79.16,79.121,0.52336922]
[1770967202297,4.2122185,79.15,79.121,0.52336922]
[1770967202507,4.2122185,79.13,79.109,0.52336922]
[1770967203795,4.2122185,79.12,79.101,0.52336922]
[1770967204530,4.2122185,79.12,79.101,13.16531818]
[1770967204825,4.2122185,79.13,79.102,0.52336922]
[1770967205003,12.63656054,79.136,79.09,4.4122185]
[1770967205004,12.63656054,79.136,79.104,0.52336922]
[1770967206225,4.2122185,79.11,79.092,0.52336922]
[1770967207213,4.2122185,79.11,79.091,0.52336922]
[1770967208799,4.2122185,79.12,79.092,12.64350376]
[1770967208998,4.2122185,79.12,79.093,0.52336922]
[1770967211427,4.2122185,79.11,79.093,0.52336922]
[1770967213119,4.2122185,79.11,79.09,0.2]
[1770967213722,4.2122185,79.1,79.09,0.2]
[1770967214420,12.64078676,79.109,79.09,0.2]
[1770967214995,4.2122185,79.11,79.09,0.2]
[1770967215423,4.2122185,79.11,79.091,0.52336922]
[1770967215824,4.2122185,79.1,79.08,0.2]
[1770967217217,4.2122185,79.12,79.081,0.52336922]
[1770967217416,4.2122185,79.12,79.082,0.52336922]
[1770967218326,4.2122185,79.11,79.082,0.52336922]
[1770967219297,4.2122185,79.11,79.084,0.52336922]
[1770967219913,4.2122185,79.1,79.08,0.2]
[1770967220118,4.2122185,79.09,79.08,0.2]
[1770967222223,16.8561481,79.09,79.08,0.2]
[1770967222425,16.8561481,79.09,79.07,0.2]
[1770967223401,4.2122185,79.08,79.07,0.2]
[1770967224015,4.2122185,79.08,79.061,0.52336922]
[1770967224802,12.64558226,79.079,79.061,0.52336922]
[1770967225001,4.2122185,79.08,79.061,0.52336922]
[1770967225217,4.2122185,79.07,79.061,0.52336922]
[1770967225618,4.2122185,79.08,79.061,0.52336922]
[1770967225999,4.2122185,79.09,79.063,0.52336922]
[1770967226200,4.2122185,79.1,79.063,0.52336922]
[1770967228425,4.2122185,79.08,79.065,0.52336922]
[1770967230130,4.2122185,79.09,79.065,0.52336922]
[1770967230513,16.85444353,79.1,79.067,0.52336922]
[1770967231116,16.85444353,79.1,79.06,0.2]
[1770967231117,4.2122185,79.09,79.06,0.2]
[1770967231414,4.2122185,79.08,79.06,0.2]
[1770967231732,4.2122185,79.07,79.06,0.2]
[1770967231933,4.2122185,79.08,79.061,0.52336922]
[1770967233010,4.61729252,79.097,79.06,0.2]
[1770967233011,4.2122185,79.09,79.063,0.52336922]
[1770967236413,4.2122185,79.09,79.065,0.52336922]
[1770967236617,16.85617729,79.09,79.065,0.52336922]
[1770967237014,16.86461811,79.09,79.065,0.52336922]
[1770967238632,4.22065932,79.08,79.06,0.2]
[1770967238931,4.22065932,79.08,79.061,0.52336922]
[1770967240434,4.22065932,79.07,79.06,0.2]
[1770967240609,4.22065932,79.08,79.06,0.72336922]
[1770967240814,4.22065932,79.08,79.061,0.52336922]
[1770967243419,54.12,79.087,79.063,0.52336922]
[1770967243940,4.22065932,79.08,79.063,0.52336922]
[1770967244113,54.12,79.087,79.063,0.52336922]
[1770967244314,58.34065932,79.09,79.063,0.52336922]
[1770967244724,58.34065932,79.09,79.065,0.52336922]
[1770967247722,4.22065932,79.08,79.061,0.52336922]
[1770967248315,58.40065932,79.08,79.061,0.52336922]
[1770967249725,4.22065932,79.07,79.06,0.2]
[1770967251041,31.60765702,79.095,79.06,0.2]
[1770967251237,4.22065932,79.08,79.061,0.52336922]
[1770967252738,4.22065932,79.09,79.061,0.52336922]
[1770967253135,4.22065932,79.09,79.062,0.52336922]
[1770967254145,4.22065932,79.09,79.063,12.64814135]
[1770967254355,4.22065932,79.09,79.064,0.52336922]
[1770967256947,4.22065932,79.09,79.066,0.52336922]
[1770967259254,4.22065932,79.09,79.068,0.52336922]
[1770967259855,4.22065932,79.1,79.07,4.22065932]
[1770967260050,4.22065932,79.1,79.071,0.52336922]
[1770967260637,4.22065932,79.12,79.081,0.52336922]
[1770967260853,4.22065932,79.12,79.091,0.52336922]
[1770967261244,4.22065932,79.12,79.093,0.52336922]
[1770967261744,4.22065932,79.11,79.093,0.52336922]
[1770967262256,58.44065932,79.12,79.093,0.52336922]
[1770967262757,54.22,79.128,79.093,0.52336922]
[1770967263136,54.22,79.128,79.095,0.52336922]
[1770967263336,4.22065932,79.13,79.095,0.52336922]
[1770967264556,4.22065932,79.12,79.095,0.52336922]
[1770967264944,4.22065932,79.11,79.095,0.52336922]
[1770967265657,4.22065932,79.11,79.097,0.52336922]
[1770967266252,58.44065932,79.12,79.097,0.52336922]
[1770967269259,58.44065932,79.12,79.099,0.52336922]
[1770967269466,4.22065932,79.13,79.101,0.52336922]
[1770967270544,4.22065932,79.13,79.103,0.52336922]
[1770967272064,4.32065932,79.17,79.102,12.64190538]
[1770967272065,4.22065932,79.14,79.111,0.52336922]
[1770967272247,58.52065932,79.14,79.111,0.52336922]
[1770967273151,58.52065932,79.14,79.113,0.52336922]
[1770967273353,4.22065932,79.13,79.113,0.52336922]
[1770967274643,4.22065932,79.12,79.101,0.52336922]
[1770967274854,54.32,79.133,79.091,0.52336922]
[1770967274855,4.22065932,79.11,79.091,0.52336922]
[1770967275555,4.22065932,79.11,79.093,0.52336922]
[1770967276147,4.22065932,79.12,79.093,0.52336922]
[1770967276347,4.22065932,79.14,79.093,0.52336922]
[1770967276348,4.22065932,79.13,79.093,0.52336922]
[1770967277150,4.22065932,79.13,79.101,0.52336922]
[1770967277348,4.22065932,79.14,79.101,0.52336922]
[1770967277555,4.22065932,79.14,79.103,0.52336922]
[1770967278452,4.22065932,79.13,79.103,0.52336922]
[1770967279668,58.48065932,79.14,79.105,0.52336922]
[1770967281065,71.11655706,79.14,79.105,0.52336922]
[1770967281366,58.48065932,79.14,79.105,0.52336922]
[1770967281562,58.48065932,79.14,79.107,0.52336922]
[1770967281750,12.63599489,79.139,79.107,0.52336922]
[1770967282157,4.22065932,79.14,79.107,0.52336922]
[1770967282971,16.85657608,79.14,79.107,0.52336922]
[1770967283151,4.22065932,79.13,79.107,0.52336922]
[1770967286647,16.85817395,79.13,79.107,0.52336922]
[1770967292979,12.63695297,79.133,79.109,0.52336922]
[1770967295975,4.61729252,79.167,79.088,41.36]
[1770967295976,4.22065932,79.15,79.121,0.52336922]
[1770967296174,54.4,79.149,79.121,0.52336922]
[1770967296976,4.22065932,79.16,79.123,0.52336922]
[1770967297277,54.42,79.159,79.131,0.52336922]
[1770967298362,54.42,79.159,79.133,0.52336922]
[1770967299561,0.1,79.17,79.141,0.52336922]
[1770967301682,4.31218847,79.17,79.142,12.6355159]
[1770967301982,4.31218847,79.17,79.135,12.63648454]
[1770967301983,4.21218847,79.16,79.135,12.63648454]
[1770967303681,16.94331502,79.17,79.131,0.52336922]
[1770967304275,16.94331502,79.17,79.141,0.52336922]
[1770967304778,4.31218847,79.17,79.141,0.52336922]
[1770967305079,4.31218847,79.17,79.14,4.21218847]
[1770967305080,0.1,79.17,79.151,0.52336922]
[1770967306666,4.31218847,79.17,79.145,0.52336922]
[1770967308390,4.31218847,79.17,79.146,12.63487731]
[1770967309274,4.31218847,79.17,79.146,13.15824653]
[1770967309675,4.31218847,79.17,79.146,0.52336922]
[1770967310885,4.31218847,79.17,79.147,12.63471767]
[1770967311092,4.31218847,79.17,79.148,0.52336922]
[1770967311891,16.94333269,79.17,79.148,0.52336922]
[1770967312392,16.94333269,79.17,79.144,0.52336922]
[1770967312600,4.31218847,79.17,79.144,0.52336922]
[1770967313299,4.31218847,79.17,79.146,0.52336922]
[1770967314712,0.1,79.17,79.146,0.52336922]
[1770967315200,4.31218847,79.17,79.147,12.63471767]
[1770967315407,4.31218847,79.17,79.148,0.52336922]
[1770967316699,0.1,79.17,79.148,0.52336922]
[1770967318190,0.05825994,79.202,79.161,0.47336922]
[1770967318394,0.1,79.21,79.171,0.47336922]
[1770967318395,12.62482798,79.209,79.171,0.47336922]
[1770967318688,12.62482798,79.209,79.17,4.21218847]
[1770967318689,54.52,79.208,79.181,0.47336922]
[1770967318895,0.05820253,79.199,79.175,0.47336922]
[1770967319100,4.21218847,79.19,79.175,0.47336922]
[1770967319679,0.05814578,79.189,79.164,12.63193667]
[1770967319878,0.05814578,79.187,79.164,12.63193667]
[1770967320303,0.05808968,79.179,79.158,0.47336922]
[1770967320481,4.21218847,79.17,79.147,0.49416384]
[1770967320678,0.05803422,79.169,79.141,0.49416384]
[1770967321296,4.21218847,79.15,79.128,0.49416384]
[1770967321684,4.21218847,79.15,79.13,0.49416384]
[1770967324417,4.21218847,79.15,79.132,0.49416384]
[1770967324706,54.52,79.178,79.141,0.49416384]
[1770967324890,54.5778187,79.176,79.141,0.49416384]
[1770967325801,0.05776636,79.171,79.141,0.49416384]
[1770967326303,54.52,79.176,79.141,0.49416384]
[1770967326497,0.05771461,79.169,79.141,0.49416384]
[1770967326703,4.21218847,79.16,79.135,0.49416384]
[1770967327893,0.05766347,79.158,79.135,0.49416384]
[1770967329096,0.05766347,79.158,79.136,12.63647391]
[1770967329295,0.05766347,79.158,79.136,13.13063775]
[1770967329884,0.05766347,79.158,79.137,0.49416384]
[1770967330388,4.21218847,79.17,79.141,0.49416384]
[1770967330592,12.63120665,79.169,79.141,0.49416384]
[1770967331595,4.21218847,79.16,79.141,0.49416384]
[1770967332006,4.21218847,79.15,79.133,0.49416384]
[1770967332799,0.05741641,79.149,79.124,0.49416384]
[1770967333505,4.21218847,79.14,79.116,0.49416384]
[1770967333808,4.21218847,79.13,79.116,0.49416384]
[1770967334009,0.05736868,79.139,79.109,0.49416384]
[1770967335109,4.21218847,79.14,79.109,0.49416384]
[1770967335490,4.21218847,79.14,79.113,12.64008907]
[1770967335692,4.21218847,79.14,79.114,0.49416384]
[1770967336206,4.21218847,79.13,79.114,0.49416384]
[1770967337996,4.21218847,79.13,79.105,12.64129089]
[1770967338199,4.21218847,79.12,79.096,12.64286436]
[1770967338814,0.46810833,79.119,79.095,41.2]
[1770967339110,4.21218847,79.11,79.091,12.64351738]
[1770967339320,4.21218847,79.1,79.073,31.61616282]
[1770967339529,4.61729252,79.137,79.061,12.64846131]
[1770967339530,4.21218847,79.09,79.061,12.64846131]
[1770967340014,4.21218847,79.09,79.062,0.49416384]
[1770967340190,4.6802968,79.09,79.064,0.49416384]
[1770967340807,4.21218847,79.11,79.064,0.49416384]
[1770967340808,4.21218847,79.08,79.064,0.49416384]
[1770967341023,4.21218847,79.08,79.06,0.2]
[1770967341196,4.21218847,79.07,79.06,0.2]
[1770967341400,4.21218847,79.08,79.062,0.49416384]
[1770967342210,4.21218847,79.08,79.064,0.49416384]
[1770967342414,4.21218847,79.09,79.064,0.49416384]
[1770967342813,4.21218847,79.08,79.064,0.49416384]
[1770967343018,0.46810833,79.089,79.064,0.49416384]
[1770967343318,4.21218847,79.09,79.064,0.49416384]
[1770967344120,4.21218847,79.08,79.06,0.2]
[1770967344318,0.46810833,79.079,79.06,0.2]
[1770967345198,4.21218847,79.08,79.062,0.49416384]
[1770967345404,4.21218847,79.1,79.062,0.49416384]
[1770967345712,4.21218847,79.1,79.071,0.49416384]
[1770967346019,0.46810833,79.107,79.071,0.49416384]
[1770967346222,4.21218847,79.11,79.071,0.49416384]
[1770967346403,4.21218847,79.1,79.071,0.49416384]
[1770967347126,4.21218847,79.1,79.073,0.49416384]
[1770967347323,4.21218847,79.11,79.08,4.21218847]
[1770967347623,4.21218847,79.11,79.081,0.49416384]
[1770967349526,4.21218847,79.1,79.083,0.49416384]
[1770967350106,4.21218847,79.1,79.077,0.49416384]
[1770967351627,4.21218847,79.09,79.072,12.64665232]
[1770967352132,4.21218847,79.09,79.073,0.50006393]
[1770967352330,4.67691835,79.1,79.073,0.50006393]
[1770967352826,4.21218847,79.1,79.073,0.50006393]
[1770967353823,4.21218847,79.09,79.074,0.50006393]
[1770967354331,0.46472988,79.099,79.074,0.50006393]